fUST/lending_fUST_20241129
["ID","MTS","AMOUNT","RATE_DAILY","PERIOD"]
[343694824,1732878647136,-340.331585,0.00030355,7]
[343694825,1732878647147,-340.331585,0.00030355,7]
[343694826,1732878647155,-340.331585,0.00030355,7]
[343694827,1732878647165,-340.331585,0.00030355,7]
[343694828,1732878647174,-340.331589,0.00030355,7]
[343694829,1732878647186,-151.0,0.00030355,7]
[343694830,1732878647196,-151.0,0.00030355,15]
[343694831,1732878647209,-151.0,0.00030355,7]
[343694832,1732878647219,-13571.41873526,0.00030356,2]
[343694833,1732878647229,-150.17,0.00030356,10]
[343694834,1732878647238,-151.0,0.00030356,7]
[343694835,1732878647249,-151.0,0.00030356,7]
[343694836,1732878647260,-151.0,0.00030356,7]
[343694837,1732878647269,-151.0,0.00030356,7]
[343694838,1732878647279,-269.29578125,0.00030356,10]
[343694839,1732878647288,-250.9303294,0.00030356,10]
[343694840,1732878647297,-500.0,0.00030356,10]
[343694841,1732878647307,-72892.73935917,0.00030356,10]
[343694842,1732878647320,-31639.54796334,0.00030356,10]
[343694851,1732879541143,-1447.96361269,0.00028051,2]
[343694855,1732879649134,-552.7592506,0.00027925,2]
[343694856,1732879649163,-35.13238725,0.00028051,2]
[343694858,1732879724693,1828.63668664,0.00026,30]
[343694860,1732879748092,-431.85481563,0.00023,2]
[343694861,1732879751097,-8702.00752185,0.00023,2]
[343694862,1732879751119,-300.0,0.00024999,2]
[343694863,1732879751139,-300.0,0.00024999,2]
[343694864,1732879751160,-3698.18312436,0.00025,2]
[343694865,1732879751179,-8.72693685,0.0002509,2]
[343694866,1732879754185,-18266.66936659,0.0002509,2]
[343694867,1732879759084,-172.2546,0.0002509,2]
[343694868,1732879760520,-2251.31076238,0.0002509,2]
[343694884,1732879832000,-300.0,0.00025089,2]
[343694886,1732879832010,-300.0,0.00025089,2]
[343694887,1732879832019,-434.32864082,0.0002509,2]
[343694888,1732879832028,-1237.15135918,0.0002509,2]
[343694951,1732879840024,-500.0,0.00025089,2]
[343694952,1732879840034,-52.97438711,0.00025089,2]
[343694971,1732879842940,-126.96361719,0.00025089,2]
[343694972,1732879842950,-433.54812511,0.00025089,2]
[343694974,1732879842959,-513.23829291,0.00025089,2]
[343694975,1732879842968,-500.0,0.00025089,2]
[343694977,1732879842978,-568.77908935,0.00025089,2]
[343694979,1732879842987,-500.0,0.00025089,2]
[343694980,1732879842996,-500.0,0.00025089,2]
[343694981,1732879843005,-500.0,0.00025089,2]
[343694982,1732879843015,-500.0,0.00025089,2]
[343694983,1732879843024,-500.0,0.00025089,2]
[343694984,1732879843033,-288.59682601,0.00025089,2]
[343694985,1732879843042,-25148.30778495,0.0002509,2]
[343694986,1732879843054,-11907.46996547,0.0002509,2]
[343695007,1732880169382,4493.07837685,0.00026,7]
[343695013,1732880361598,167.905548,0.00013973,2]
[343695020,1732880739131,-201.471369,0.00024064,2]
[343695021,1732880739154,-371.204753,0.00024088,2]
[343695022,1732880739177,-893.2321504,0.00024852,2]
[343695023,1732880750100,-38.5196025,0.00024852,2]
[343695024,1732880750122,-719.29477929,0.00025,30]
[343695025,1732880836085,-613.1895701,0.00024089,2]
[343695026,1732880836107,-6342.38193746,0.00025,30]
[343695027,1732880836130,-300.0,0.00025069,2]
[343695028,1732880836153,-300.0,0.00025069,2]
[343695029,1732880836175,-5986.05886944,0.00025069,2]
[343695030,1732880843083,-9344.00030472,0.00025069,2]
[343695031,1732880854139,-156.8420363,0.00024988,2]
[343695032,1732880947110,-689.91722573,0.00024988,2]
[343695033,1732880947132,-300.0,0.00025072,2]
[343695034,1732880947155,-300.0,0.00025072,2]
[343695035,1732880947176,-184.0,0.00025072,2]
[343695036,1732880947197,-168.6491859,0.00025073,2]
[343695037,1732880948088,-243.05751718,0.00025073,2]
[343695038,1732880968146,-88.29329692,0.00025073,2]
[343695039,1732880968168,-500.0,0.00025073,2]
[343695040,1732880968190,-500.0,0.00025073,2]
[343695041,1732880968211,-158.02322084,0.00025073,2]
[343695042,1732880968232,-266.27474871,0.00025073,2]
[343695043,1732880968253,-160.15870519,0.00025073,2]
[343695044,1732880968275,-500.0,0.00025073,2]
[343695045,1732880968298,-5000.0,0.00025088,2]
[343695046,1732880968319,-5000.0,0.00025089,2]
[343695047,1732880968344,-159.684,0.00025089,9]
[343695048,1732880968365,-500.0,0.00025089,2]
[343695049,1732880968387,-500.0,0.00025089,2]
[343695050,1732880968408,-500.0,0.00025089,2]
[343695051,1732880968430,-296.37312527,0.00025089,2]
[343695052,1732880968453,-500.0,0.00025089,2]
[343695053,1732880968474,-169.60820045,0.00025089,2]
[343695054,1732880968495,-549.52327942,0.00025089,2]
[343695055,1732880968516,-181.37821576,0.00025089,2]
[343695056,1732880968538,-301.52784807,0.00025089,2]
[343695057,1732880968559,-500.0,0.00025089,2]
[343695058,1732880968581,-500.0,0.00025089,2]
[343695059,1732880968605,-462.55894745,0.00025089,2]
[343695060,1732880968626,-500.0,0.00025089,2]
[343695061,1732880968647,-500.0,0.00025089,2]
[343695062,1732880968671,-500.0,0.00025089,2]
[343695063,1732880968693,-500.0,0.00025089,2]
[343695064,1732880968716,-500.0,0.00025089,2]
[343695065,1732880968738,-500.0,0.00025089,2]
[343695066,1732880968757,-500.0,0.00025089,2]
[343695067,1732880968779,-500.0,0.00025089,2]
[343695068,1732880968801,-500.0,0.00025089,2]
[343695069,1732880968823,-500.0,0.00025089,2]
[343695070,1732880968846,-500.0,0.00025089,2]
[343695071,1732880968867,-500.0,0.00025089,2]
[343695072,1732880968892,-500.0,0.00025089,2]
[343695073,1732880968915,-500.0,0.00025089,2]
[343695074,1732880968936,-500.0,0.00025089,2]
[343695075,1732880968959,-500.0,0.00025089,2]
[343695076,1732880968980,-647.12546676,0.00025089,2]
[343695077,1732880969001,-22244.29639575,0.0002509,2]
[343695078,1732880969124,-380.0,0.00025111,2]
[343695079,1732880969149,-600.0,0.00025424,7]
[343695080,1732880969171,-1000.0,0.00025621,2]
[343695081,1732880969193,-417.72695186,0.00025621,2]
[343695111,1732881032188,-600.0,0.00025424,7]
[343695113,1732881032199,-302.63687509,0.00025493,2]
[343695115,1732881032209,-585.60624318,0.00025621,2]
[343695117,1732881032218,-500.0,0.00025678,2]
[343695119,1732881032227,-302.63687509,0.00025748,2]
[343695121,1732881032236,-300.0,0.00025998,2]
[343695124,1732881032246,-5000.0,0.00025999,2]
[343695126,1732881032256,-300.0,0.00025999,2]
[343695127,1732881032266,-2165.92162315,0.00026,7]
[343695129,1732881032275,-302.63687509,0.00026003,2]
[343695131,1732881032284,-500.0,0.00026226,2]
[343695133,1732881032293,-600.0,0.00026246,7]
[343695135,1732881032302,-453.95531264,0.00026258,4]
[343695137,1732881032311,-421.8870478,0.00026513,4]
[343695139,1732881032321,-167.93621,0.00026592,2]
[343695141,1732881032330,-1296.18792222,0.00027,60]
[343695143,1732881032341,-2809.30381074,0.00027,60]
[343695145,1732881032350,-600.0,0.00027068,7]
[343695147,1732881032360,-167.93621,0.00027089,2]
[343695149,1732881032369,-334.93491051,0.00027481,2]
[343695151,1732881032380,-150.0,0.00027497,2]
[343695154,1732881032390,-167.93621,0.00027586,2]
[343695156,1732881032399,-1216.32572045,0.00027653,2]
[343695158,1732881032409,-5389.88080302,0.00027654,2]
[343695159,1732881032418,-150.0,0.00027795,2]
[343695161,1732881032427,-5389.88080303,0.00027846,2]
[343695163,1732881032437,-505.94,0.0002799,3]
[343695165,1732881032446,-252.97,0.0002799,3]
[343695166,1732881032455,-758.95,0.0002799,3]
[343695167,1732881032465,-846.759262,0.00027999,2]
[343695168,1732881032474,-5411.0793222,0.00028,2]
[343695169,1732881032485,-350.93238898,0.00028,2]
[343695170,1732881032495,-431.41697784,0.00028,2]
[343695171,1732881032504,-167.93621,0.00028083,2]
[343695173,1732881032513,-420.0,0.00028136,2]
[343695175,1732881032522,-179.078624,0.0002818,2]
[343695176,1732881032532,-167.93621,0.0002858,2]
[343695177,1732881032540,-420.0,0.00028599,2]
[343695178,1732881032550,-5313.69023966,0.000286,7]
[343695179,1732881032559,-158.28082213,0.000286,2]
[343695181,1732881032568,-158.28082213,0.000286,2]
[343695183,1732881032577,-792.43,0.000287,2]
[343695185,1732881032587,-500.91785115,0.000287,5]
[343695187,1732881032596,-500.0,0.000287,5]
[343695189,1732881032607,-6899.19465222,0.00028751,2]
[343695191,1732881032616,-846.759262,0.00028752,2]
[343695193,1732881032626,-500.0,0.00028767,3]
[343695195,1732881032637,-500.0,0.00028767,3]
[343695197,1732881032646,-500.0,0.00028767,3]
[343695199,1732881032657,-500.0,0.00028767,3]
[343695200,1732881032669,-500.0,0.00028767,3]
[343695201,1732881032678,-500.0,0.00028767,3]
[343695202,1732881032687,-500.0,0.00028767,3]
[343695203,1732881032697,-210.99335854,0.00028767,3]
[343695204,1732881032706,-500.0,0.00028767,3]
[343695205,1732881032715,-500.0,0.00028767,3]
[343695206,1732881032724,-500.0,0.00028767,3]
[343695207,1732881032734,-500.0,0.00028767,3]
[343695208,1732881032743,-500.0,0.00028767,2]
[343695209,1732881032753,-500.0,0.00028767,2]
[343695210,1732881032762,-270.04817276,0.00028767,2]
[343695211,1732881032771,-500.0,0.00028775,5]
[343695212,1732881032782,-500.0,0.00028867,5]
[343695213,1732881032791,-160.16713598,0.00028867,2]
[343695214,1732881032800,-366.88401158,0.000289,5]
[343695215,1732881032810,-153.27,0.000289,31]
[343695216,1732881032821,-153.27,0.000289,31]
[343695217,1732881032830,-153.27,0.000289,31]
[343695218,1732881032839,-153.27,0.000289,31]
[343695219,1732881032848,-153.27,0.000289,31]
[343695220,1732881032858,-153.27,0.000289,31]
[343695221,1732881032867,-153.27,0.000289,31]
[343695222,1732881032876,-153.27,0.000289,31]
[343695223,1732881032887,-153.27,0.000289,31]
[343695224,1732881032901,-153.27,0.000289,31]
[343695225,1732881032910,-862.21248316,0.00029,2]
[343695226,1732881032920,-1502.14989011,0.00029,30]
[343695227,1732881032929,-153.0,0.00029242,2]
[343695228,1732881032939,-153.0,0.00029242,2]
[343695229,1732881032949,-2378.0,0.00029317,2]
[343695230,1732881032958,-969.5,0.00029351,15]
[343695231,1732881032967,-1011.88,0.0002936,3]
[343695232,1732881032978,-505.94,0.0002936,3]
[343695233,1732881032987,-150.464,0.0002937,2]
[343695234,1732881032997,-1562.618,0.0002937,2]
[343695235,1732881033006,-454.60593641,0.00029499,3]
[343695236,1732881033016,-7968.21503076,0.000295,2]
[343695237,1732881033025,-846.759262,0.00029504,2]
[343695238,1732881033034,-8000.0,0.000296,2]
[343695239,1732881033044,-202.75441789,0.00029644,2]
[343695240,1732881033053,-501.03367693,0.00029673,2]
[343695241,1732881033062,-500.0,0.00029673,5]
[343695242,1732881033072,-528.17612683,0.00029673,5]
[343695243,1732881033082,-160.18524842,0.00029673,2]
[343695244,1732881033091,-3976.08,0.0002968,10]
[343695245,1732881033101,-4771.3,0.00029689,10]
[343695246,1732881033111,-3055.91,0.0002969,10]
[343695247,1732881033120,-500.0,0.00029699,3]
[343695248,1732881033130,-15000.0,0.000297,2]
[343695249,1732881033139,-161737.60476852,0.000297,2]
[343695250,1732881033152,-42324.51649766,0.000297,2]
[343695251,1732881033162,-37931.03245625,0.00029744,2]
[343695319,1732881038529,-162.87869693,0.00026867,2]
[343695322,1732881038541,-93.3550722,0.00026867,2]
[343695324,1732881038551,-600.0,0.0002789,7]
[343695326,1732881038561,-440.28432749,0.00028599,2]
[343695328,1732881038570,-449.94703105,0.00028599,2]
[343695329,1732881038579,-600.0,0.00028712,7]
[343695331,1732881038589,-500.49046582,0.00029673,5]
[343695334,1732881038598,-311.77115135,0.00029699,2]
[343695336,1732881038608,-227.2414249,0.00029734,10]
[343695395,1732881043001,-8.81336358,0.00028599,2]
[343695398,1732881043044,-398.92088092,0.00028599,2]
[343695399,1732881043055,-3086.1585751,0.00029734,10]
[343695400,1732881043064,-184068.96754375,0.00029744,2]
[343695401,1732881043073,-500.86902417,0.00029773,5]
[343695402,1732881043083,-202.75441788,0.00029797,2]
[343695403,1732881043092,-500.0,0.00029799,3]
[343695404,1732881043102,-500.0,0.00029833,2]
[343695405,1732881043111,-500.0,0.00029833,3]
[343695406,1732881043121,-500.0,0.00029843,3]
[343695407,1732881043130,-500.0,0.00029843,3]
[343695408,1732881043141,-500.0,0.00029843,3]
[343695409,1732881043150,-500.0,0.00029843,3]
[343695410,1732881043161,-500.0,0.00029843,3]
[343695411,1732881043170,-500.0,0.00029843,3]
[343695412,1732881043180,-160.0,0.00029938,3]
[343695413,1732881043190,-202.75441788,0.00029951,2]
[343695414,1732881043200,-886.41087583,0.0003,2]
[343695415,1732881043210,-984.26993783,0.0003,30]
[343695416,1732881043220,-507.0,0.0003,2]
[343695417,1732881043229,-160.0,0.0003,2]
[343695418,1732881043238,-236.0,0.0003,2]
[343695419,1732881043248,-202.75441788,0.00030104,2]
[343695420,1732881043258,-201.098401,0.00030137,120]
[343695421,1732881043267,-594.838875,0.000302,32]
[343695422,1732881043277,-666.0,0.00030256,2]
[343695423,1732881043286,-846.759262,0.00030257,2]
[343695424,1732881043296,-202.75441788,0.00030257,2]
[343695425,1732881043305,-1699.09416693,0.000303,7]
[343695426,1732881043315,-662.74203357,0.00030355,2]
[343695427,1732881043324,-600.0,0.00030356,7]
[343695428,1732881043333,-150.2,0.00030356,10]
[343695429,1732881043342,-500.0,0.00030356,10]
[343695430,1732881043352,-431.41697784,0.00030357,7]
[343695431,1732881043361,-431.41697784,0.00030357,7]
[343695432,1732881043370,-69384.81253289,0.00030357,10]
[343695447,1732881046103,-610.630861,0.00027489,2]
[343695448,1732881046112,-250.244,0.00029782,2]
[343695449,1732881046122,-8866.125139,0.00030357,10]
[343695450,1732881046134,-7154.22875849,0.00030357,10]
[343695451,1732881046147,-5307.44860175,0.00030357,10]
[343695468,1732881599080,180.440746,0.00013973,2]
[343695473,1732881677335,6818.0,0.00026,60]
[343695481,1732881957113,-841.60243447,0.00022793,5]
[343695482,1732881957134,-167.508035,0.00023023,5]
[343695483,1732881957155,-1452.03018646,0.00023608,2]
[343695486,1732882032145,-300.0,0.00023607,2]
[343695487,1732882032166,-300.0,0.00023607,2]
[343695488,1732882032186,-1095.75848465,0.00023607,2]
[343695489,1732882042133,-398.092202,0.00023295,2]
[343695490,1732882042155,-1624.24151535,0.00023607,2]
[343695491,1732882042176,-11929.73883815,0.00023608,2]
[343695492,1732882045088,-2108.73911031,0.00023608,2]
[343695500,1732882145101,-2187.51765464,0.00023608,2]
[343695501,1732882145131,-7201.97421044,0.00023608,2]
[343695502,1732882145158,-250.77276895,0.00023728,2]
[343695503,1732882145180,-300.0,0.00023997,2]
[343695504,1732882145202,-300.0,0.00023998,2]
[343695505,1732882145224,-1205.1148872,0.00023999,2]
[343695506,1732882145248,-550.1688626,0.00024,5]
[343695507,1732882145272,-250.0,0.00024099,2]
[343695508,1732882145295,-504.76032522,0.00024702,2]
[343695509,1732882145319,-5000.0,0.00024702,2]
[343695510,1732882145342,-500.0,0.00024702,2]
[343695511,1732882145365,-500.0,0.00024702,2]
[343695512,1732882145386,-500.0,0.00024702,2]
[343695513,1732882145408,-547.15088925,0.00024702,2]
[343695514,1732882145430,-500.0,0.00024702,2]
[343695515,1732882145452,-500.0,0.00024702,2]
[343695516,1732882145473,-500.0,0.00024702,2]
[343695517,1732882145494,-500.0,0.00024702,2]
[343695518,1732882145515,-500.0,0.00024702,2]
[343695519,1732882145536,-500.0,0.00024702,2]
[343695520,1732882145558,-500.0,0.00024702,2]
[343695521,1732882145580,-500.0,0.00024702,2]
[343695522,1732882145601,-500.0,0.00024702,2]
[343695523,1732882145623,-500.0,0.00024702,2]
[343695524,1732882145644,-500.0,0.00024702,2]
[343695525,1732882145670,-500.0,0.00024702,2]
[343695526,1732882145693,-500.0,0.00024702,2]
[343695527,1732882145714,-500.0,0.00024702,2]
[343695528,1732882145735,-500.0,0.00024702,2]
[343695529,1732882145756,-500.0,0.00024702,2]
[343695530,1732882145778,-500.0,0.00024702,2]
[343695531,1732882145800,-500.0,0.00024702,2]
[343695532,1732882145822,-500.0,0.00024702,2]
[343695533,1732882145844,-500.0,0.00024702,2]
[343695534,1732882145866,-500.0,0.00024702,2]
[343695535,1732882145888,-500.0,0.00024702,2]
[343695536,1732882145910,-397.58172893,0.00024702,2]
[343695537,1732882145932,-500.0,0.00024702,2]
[343695538,1732882145954,-500.0,0.00024702,2]
[343695539,1732882145976,-500.0,0.00024702,2]
[343695540,1732882146067,-382.5840797,0.00024702,2]
[343695541,1732882146109,-500.0,0.00024702,2]
[343695542,1732882146130,-489.77531084,0.00024702,2]
[343695543,1732882146151,-500.0,0.00024702,2]
[343695544,1732882146174,-500.0,0.00024702,2]
[343695545,1732882146196,-500.0,0.00024702,2]
[343695546,1732882146218,-500.0,0.00024702,2]
[343695547,1732882146239,-500.0,0.00024702,2]
[343695548,1732882146264,-500.0,0.00024702,2]
[343695549,1732882146285,-500.0,0.00024702,2]
[343695550,1732882146306,-500.0,0.00024702,2]
[343695551,1732882146327,-500.0,0.00024702,2]
[343695552,1732882146347,-500.0,0.00024702,2]
[343695553,1732882146369,-500.0,0.00024702,2]
[343695554,1732882146390,-500.0,0.00024702,2]
[343695555,1732882146413,-500.0,0.00024702,2]
[343695556,1732882146433,-500.0,0.00024702,2]
[343695557,1732882146454,-602.5058492,0.00024702,2]
[343695558,1732882146475,-500.0,0.00024702,2]
[343695559,1732882146496,-500.0,0.00024702,2]
[343695560,1732882146517,-500.0,0.00024702,2]
[343695561,1732882146537,-2719.18981823,0.00024703,2]
[343695565,1732882154140,-14304.74801054,0.00024703,2]
[343695566,1732882154162,-503.0,0.000248,2]
[343695567,1732882154183,-150.29031398,0.000248,2]
[343695568,1732882162118,-294.0,0.000248,2]
[343695573,1732882220803,180.440746,0.00013973,2]
[343695598,1732882232207,-1698.74610589,0.00023607,2]
[343695599,1732882232219,-300.0,0.00023607,2]
[343695602,1732882232312,-1946.52,0.00023607,2]
[343695603,1732882232325,-1054.73389411,0.00023607,2]
[343695604,1732882232335,-4853.33790996,0.00024702,2]
[343695605,1732882232346,-146.66209004,0.00024702,2]
[343695606,1732882232356,-2352.504392,0.000251,2]
[343695607,1732882232366,-165.24,0.00025205,9]
[343695608,1732882232375,-4030.49870623,0.0002605,2]
[343695609,1732882232384,-300.0,0.00026053,2]
[343695610,1732882232395,-300.0,0.00026053,2]
[343695611,1732882232405,-500.0,0.00026521,7]
[343695612,1732882232414,-500.0,0.00027397,2]
[343695613,1732882232423,-172.077301,0.00027489,2]
[343695614,1732882232432,-610.630861,0.00027833,2]
[343695615,1732882232442,-158.28082215,0.000279,2]
[343695616,1732882232451,-160.15870519,0.00027942,2]
[343695617,1732882232460,-158.02322084,0.00028029,2]
[343695618,1732882232470,-266.27474871,0.00028029,5]
[343695619,1732882232478,-500.0,0.00028165,7]
[343695620,1732882232489,-276.23605673,0.00028176,2]
[343695621,1732882232501,-334.39480427,0.00028176,2]
[343695622,1732882232510,-420.0,0.00028194,2]
[343695623,1732882232520,-610.630861,0.0002852,2]
[343695624,1732882232529,-420.0,0.00028658,2]
[343695625,1732882232539,-615.6648874,0.00028667,2]
[343695626,1732882232549,-898.44,0.000287,2]
[343695627,1732882232560,-3460.74,0.00028757,10]
[343695628,1732882232570,-2883.95,0.00028757,10]
[343695629,1732882232579,-2403.29,0.00028757,10]
[343695630,1732882232589,-283.20439457,0.00028766,2]
[343695631,1732882232599,-500.0,0.00028766,2]
[343695632,1732882232608,-317.19071816,0.00028766,2]
[343695633,1732882232618,-384.59899868,0.00028766,2]
[343695634,1732882232628,-269.25192134,0.00028766,2]
[343695635,1732882232637,-488.61972093,0.00028767,2]
[343695636,1732882232647,-176.56993692,0.00028767,2]
[343695637,1732882232657,-599.68151598,0.00028767,3]
[343695638,1732882232666,-507.43665622,0.00028767,4]
[343695639,1732882232675,-500.0,0.00028767,3]
[343695640,1732882232684,-500.0,0.00028767,3]
[343695641,1732882232694,-32.96462007,0.00028767,3]
[343695723,1732882238738,-1550.23028395,0.00028757,10]
[343695733,1732882243312,-452.50971605,0.00028757,10]
[343695734,1732882243322,-500.0,0.00028766,2]
[343695735,1732882243333,-542.50934219,0.00028766,2]
[343695736,1732882243342,-276.64170121,0.00028766,2]
[343695737,1732882243353,-500.0,0.00028766,2]
[343695738,1732882243362,-344.72287213,0.00028766,2]
[343695739,1732882243372,-599.73130321,0.00028766,2]
[343695740,1732882243382,-472.47999731,0.00028767,3]
[343695741,1732882243391,-500.0,0.00028767,3]
[343695742,1732882243400,-500.0,0.00028767,3]
[343695743,1732882243409,-500.0,0.00028767,3]
[343695744,1732882243419,-503.11046422,0.00028767,3]
[343695745,1732882243429,-500.0,0.00028767,3]
[343695746,1732882243438,-500.0,0.00028767,2]
[343695747,1732882243448,-500.0,0.00028767,2]
[343695748,1732882243458,-500.0,0.00028767,3]
[343695749,1732882243467,-500.0,0.00028767,3]
[343695750,1732882243477,-352.17504543,0.00028767,3]
[343695751,1732882243492,-151.11020631,0.00028767,3]
[343695752,1732882243501,-506.75738008,0.00028767,3]
[343695753,1732882243511,-413.10226633,0.00028767,3]
[343695755,1732882243520,-500.0,0.00028767,3]
[343695756,1732882243530,-500.0,0.00028767,3]
[343695758,1732882243540,-507.67708465,0.00028767,3]
[343695760,1732882243550,-163.74595757,0.00028767,3]
[343695762,1732882243559,-510.43731056,0.00028767,3]
[343695764,1732882243569,-500.0,0.00028767,3]
[343695766,1732882243578,-252.29299165,0.00028767,3]
[343695768,1732882243590,-500.0,0.00028767,3]
[343695770,1732882243600,-500.0,0.00028767,3]
[343695772,1732882243610,-500.0,0.00028767,3]
[343695774,1732882243619,-504.0478957,0.00028767,3]
[343695775,1732882243629,-500.0,0.00028767,3]
[343695776,1732882243638,-500.0,0.00028767,3]
[343695777,1732882243648,-500.0,0.00028767,3]
[343695779,1732882243657,-500.0,0.00028767,3]
[343695780,1732882243666,-500.0,0.00028767,3]
[343695782,1732882243675,-500.0,0.00028767,3]
[343695783,1732882243684,-500.0,0.00028767,3]
[343695784,1732882243694,-504.14941665,0.00028767,3]
[343695785,1732882243703,-500.0,0.00028767,3]
[343695786,1732882243712,-500.0,0.00028767,3]
[343695788,1732882243723,-409.58284247,0.00028767,3]
[343695790,1732882243732,-600.13,0.00028767,10]
[343695792,1732882243743,-500.0,0.00028767,3]
[343695793,1732882243753,-594.98,0.00028767,3]
[343695794,1732882243763,-501.28123319,0.00028767,3]
[343695796,1732882243773,-500.0,0.00028767,3]
[343695798,1732882243781,-500.0,0.00028767,3]
[343695800,1732882243791,-500.0,0.00028767,3]
[343695801,1732882243800,-500.0,0.00028767,3]
[343695802,1732882243809,-523.94361315,0.00028767,3]
[343695803,1732882243818,-500.0,0.00028767,3]
[343695804,1732882243827,-500.0,0.00028767,3]
[343695806,1732882243837,-500.0,0.00028767,3]
[343695808,1732882243845,-500.0,0.00028767,3]
[343695810,1732882243854,-500.0,0.00028767,3]
[343695811,1732882243863,-500.0,0.00028767,3]
[343695812,1732882243873,-500.0,0.00028767,3]
[343695813,1732882243883,-522.35002254,0.00028767,3]
[343695814,1732882243892,-500.0,0.00028767,3]
[343695815,1732882243901,-511.13596949,0.00028767,3]
[343695816,1732882243910,-500.0,0.00028767,3]
[343695817,1732882243920,-500.0,0.00028767,3]
[343695818,1732882243930,-500.0,0.00028767,3]
[343695819,1732882243943,-500.0,0.00028767,3]
[343695820,1732882243956,-500.0,0.00028767,3]
[343695821,1732882243965,-500.0,0.00028767,3]
[343695822,1732882243977,-500.0,0.00028767,3]
[343695823,1732882243992,-500.0,0.00028767,3]
[343695824,1732882244003,-500.0,0.00028767,3]
[343695825,1732882244012,-500.0,0.00028767,3]
[343695826,1732882244022,-500.0,0.00028767,3]
[343695827,1732882244031,-500.0,0.00028767,3]
[343695828,1732882244041,-500.0,0.00028767,3]
[343695829,1732882244051,-500.0,0.00028767,3]
[343695830,1732882244059,-500.0,0.00028767,3]
[343695831,1732882244069,-500.0,0.00028767,3]
[343695832,1732882244078,-500.0,0.00028767,3]
[343695833,1732882244087,-500.0,0.00028767,3]
[343695834,1732882244096,-500.0,0.00028767,3]
[343695835,1732882244105,-500.0,0.00028767,3]
[343695836,1732882244114,-500.0,0.00028767,3]
[343695837,1732882244124,-500.0,0.00028767,3]
[343695838,1732882244134,-500.0,0.00028767,3]
[343695839,1732882244144,-506.26,0.00028767,3]
[343695840,1732882244153,-500.0,0.00028767,3]
[343695841,1732882244162,-500.0,0.00028767,3]
[343695842,1732882244172,-500.0,0.00028767,3]
[343695843,1732882244182,-500.0,0.00028767,3]
[343695844,1732882244193,-500.0,0.00028767,3]
[343695845,1732882244205,-500.0,0.00028767,3]
[343695846,1732882244215,-571.00787457,0.00028767,3]
[343695847,1732882244224,-500.0,0.00028767,3]
[343695848,1732882244234,-500.0,0.00028767,3]
[343695849,1732882244244,-340.7825412,0.00028767,3]
[343695850,1732882244255,-500.0,0.00028767,3]
[343695851,1732882244264,-500.0,0.00028767,3]
[343695852,1732882244276,-500.0,0.00028767,3]
[343695853,1732882244286,-500.0,0.00028767,3]
[343695854,1732882244295,-500.0,0.00028767,3]
[343695855,1732882244305,-500.0,0.00028767,3]
[343695856,1732882244315,-500.0,0.00028767,3]
[343695857,1732882244325,-500.0,0.00028767,3]
[343695858,1732882244335,-504.33439756,0.00028767,3]
[343695859,1732882244345,-500.0,0.00028767,3]
[343695860,1732882244355,-500.0,0.00028767,3]
[343695861,1732882244365,-500.0,0.00028767,3]
[343695862,1732882244375,-500.0,0.00028767,3]
[343695863,1732882244384,-500.0,0.00028767,3]
[343695864,1732882244483,-500.0,0.00028767,3]